Cogmind - Beta 9.6 @@@ ROGUE MODE // 2020.05.30 @ 00:01:08 Player: pGoos Result: Destroyed by G-34 Mercenary with Small Laser Performance ------------- Evolutions (1) 500 Regions Visited (2) 400 Robots Destroyed (9) 45 Value Destroyed (185) 185 Prototype IDs (2) 40 Alien Tech Used (0) 0 Bonus (0) 0 TOTAL SCORE: 1170 Bonus ------- None Cogmind --------- Core Integrity 0/400 Matter 163/300 Energy 10/125 System Corruption 5% Temperature Cool (18) Movement Walking (130) Location -9/Materials Parts ------- > --- POWER (1) -------- Light Ion Engine > --- PROPULSION (4) --- Titanium Leg Titanium Leg Titanium Leg Titanium Leg > --- UTILITY (2) ------ Small Storage Unit High-capacity Storage Unit > --- WEAPON (2) ------- (None) > --- INVENTORY (14) --- Titanium Leg Titanium Leg Titanium Leg Titanium Leg Medium Laser Particle Cannon Plasma Cutter Peak State ------------ > --- POWER ------------ Light Ion Engine > --- PROPULSION ------- Titanium Leg Titanium Leg Titanium Leg Titanium Leg > --- UTILITY ---------- Small Storage Unit High-capacity Storage Unit > --- WEAPON ----------- (None) > --- INVENTORY -------- Titanium Leg Titanium Leg Titanium Leg Titanium Leg Medium Laser Particle Cannon Plasma Cutter [Rating: 16] Favorites ----------- Power Light Ion Engine Engine Light Ion Engine Propulsion Wheel Leg Aluminum Leg Wheel Wheel Utility Small Storage Unit Storage Small Storage Unit Protection Medium Armor Plating Weapon Medium Laser Energy Gun Medium Laser Energy Cannon Beam Cannon Special Weapon Plasma Cutter Build | -11 -10 -9 ------- Run | Scr Mat Mat Slots Evolved 2 | . . 2 Power . | . . . Propulsion 2 | . . 2 Utility . | . . . Weapon . | . . . Parts Attached 36 | 6 . 30 Power 4 | 1 . 3 Engine 4 | 1 . 3 Core . | . . . Reactor . | . . . Propulsion 16 | 2 . 14 Treads . | . . . Leg 11 | . . 11 Wheel 5 | 2 . 3 Hover . | . . . Flight . | . . . Utility 5 | 1 . 4 Device . | . . . Storage 3 | 1 . 2 Processor . | . . . Hackware . | . . . Protection 2 | . . 2 Artifact . | . . . Weapon 11 | 2 . 9 Energy Gun 9 | 2 . 7 Energy Cannon 1 | . . 1 Ballistic Gun . | . . . Ballistic Cannon . | . . . Launcher . | . . . Special Weapon 1 | . . 1 Impact Weapon . | . . . Slashing Weapon . | . . . Piercing Weapon . | . . . Special Melee Weapon . | . . . Unidentified Prototypes . | . . . Parts Lost 15 | . . 15 Power 2 | . . 2 Propulsion 6 | . . 6 Utility 1 | . . 1 Weapon 6 | . . 6 Highest Loss Streak 15 | . . 15 Average Slot Usage (%) 81 | . 85 80 Engine 10 | . 14 9 Leg 3 | . . 4 Wheel 29 | . 28 29 Storage 12 | . 14 12 Protection 4 | . . 5 Energy Gun 19 | . 28 17 Naked Turns . | . . . Heaviest Build 49 | 11 11 49 Greatest Support 68 | 26 26 68 Greatest Overweight (x) 14 | . . 14 Average Overweight (x) . | . . . Largest Inventory Capacity 14 | 6 6 14 Average Capacity 8 | 5 6 9 Most Carried 12 | 6 6 12 Average Carried 6 | 3 6 6 Final Capacity 14 | 6 6 14 Final Carried 7 | 6 6 7 Class Distribution -------------------- 100% | Mutant Dominant Class ---------------- Mutant | -10/Materials Mutant | -9/Materials Resources | -11 -10 -9 ----------- Run | Scr Mat Mat Matter Collected 392 | 260 . 132 Remotely . | . . . Salvage Created 317 | 110 . 207 Parts 20 | 2 . 18 Haulers Intercepted . | . . . Recyclers Shooed 1 | . . 1 Parts Field Recycled . | . . . Retrieved Matter . | . . . Parts Self-Destructed . | . . . Prevented . | . . . Kills | -11 -10 -9 ------- Run | Scr Mat Mat Combat Hostiles Destroyed 6 | . . 6 Melee 1 | . . 1 Guns 5 | . . 5 Classes Destroyed 7 | 2 . 5 Tunneler 1 | 1 . . Recycler 1 | 1 . . Watcher 1 | . . 1 Swarmer 3 | . . 3 Grunt 1 | . . 1 Duelist 1 | . . 1 Sentry 1 | . . 1 Best Kill Streak 7 | 2 . 7 Combat Bots Only 5 | . . 5 Max Kills in Single Turn 1 | 1 . 1 Gunslinging . | . . . Exploded . | . . . Melee 1 | . . 1 Uniques/NPCs Destroyed . | . . . Combat | -11 -10 -9 -------- Run | Scr Mat Mat Damage Taken 1620 | . 120 1500 Core 426 | . 17 409 Absorbed by Shields . | . . . Core Remaining (%) 96 | 100 93 . Volleys Fired 21 | 7 . 14 Largest 2 | 2 . 2 Hottest 130 | 100 . 130 Shots Fired 42 | 14 . 28 Gun 34 | 14 . 20 Cannon 5 | . . 5 Launcher . | . . . Special 3 | . . 3 Kinetic . | . . . Thermal 41 | 14 . 27 Explosive . | . . . Electromagnetic 1 | . . 1 Robot Hit Streak 12 | 4 . 12 Robot Miss Streak 6 | 6 . 4 Penetration Max . | . . . Secondary Targets 1 | . . 1 Max Gunslinging Chain 1 | . . 1 Shots Hit Robots 33 | 7 . 26 Core Hits 29 | 3 . 26 Critical Hits . | . . . Critical Kills . | . . . Critical Parts Destroyed . | . . . Melee Attacks . | . . . Impact . | . . . Slashing . | . . . Piercing . | . . . Sneak Attacks . | . . . Combat Hostiles . | . . . Follow-up Attacks . | . . . Damage Inflicted 446 | 89 . 357 Guns 363 | 89 . 274 Cannons 35 | . . 35 Explosions . | . . . Melee . | . . . Ramming 38 | . . 38 Kinetic . | . . . Thermal 387 | 89 . 298 Explosive . | . . . Electromagnetic 21 | . . 21 Impact . | . . . Slashing . | . . . Piercing . | . . . Highest Corruption 5 | . . 5 Average Corruption 5 | . . 5 Corruption Purged . | . . . Effects 2 | . . 2 Matter Fused 1 | . . 1 Data Loss (major) 1 | . . 1 Overload Shots . | . . . Overflow Damage . | . . . Projectiles . | . . . Explosions . | . . . Melee . | . . . Knockbacks . | . . . Impact . | . . . Kinetic . | . . . Secondary . | . . . Self-Inflicted Damage 17 | . . 17 Shots . | . . . Rammed 6 | . . 6 Targets Rammed 6 | . . 6 Kicked . | . . . Crushed . | . . . Highest Temperature 278 | 156 . 278 Average Temperature 110 | 69 . 128 Received Heat Transfer 651 | . . 651 Effects 2 | . . 2 Interference 2 | . . 2 Siege Activations . | . . . Robots Corrupted . | . . . Combat Hostiles . | . . . Parts Fried . | . . . Impact Corruptions . | . . . Robots Melted . | . . . Combat Hostiles . | . . . Parts Melted 4 | 2 . 2 Heat Transferred 795 | 259 . 536 Parts Sabotaged . | . . . Parts Stolen . | . . . Parts Stripped . | . . . Power Chain Reactions . | . . . Missiles Intercepted . | . . . Alert | -11 -10 -9 ------- Run | Scr Mat Mat Peak Influence 119 | 10 6 119 Average Influence 29 | 2 6 43 Maximum Alert Level . | . . . Low Security (%) 100 | 100 100 100 Level 1 . | . . . Level 2 . | . . . Level 3 . | . . . Level 4 . | . . . Level 5 . | . . . High Security . | . . . Max Security . | . . . Squads Dispatched 2 | . . 2 Investigation . | . . . Extermination . | . . . Reinforcement 2 | . . 2 Assault . | . . . Garrison . | . . . Intercept . | . . . Construction Impeded . | . . . Haulers Reinforced . | . . . Stealth | -11 -10 -9 --------- Run | Scr Mat Mat Distress Signals 3 | . . 3 Communications Jammed . | . . . Distress Signals . | . . . Times Spotted 21 | . 3 18 Peak Tracking Total 8 | . 4 8 Tactical Retreats . | . . . Traps | -11 -10 -9 ------- Run | Scr Mat Mat Traps Triggered 1 | . . 1 Indirectly . | . . . Trap Hack Attempts . | . . . Triggered . | . . . Disarmed . | . . . Reprogrammed . | . . . Reused . | . . . Traps Extracted . | . . . Installed . | . . . Triggered . | . . . Machines | -11 -10 -9 ---------- Run | Scr Mat Mat Machines Disabled . | . . . Max in Single Turn . | . . . Machines Sabotaged . | . . . Garrisons Compromised . | . . . Overloaded Fab Kills . | . . . Fab Network Shutdowns . | . . . Hacking | -11 -10 -9 --------- Run | Scr Mat Mat Machines Accessed 5 | . 1 4 Terminals 4 | . 1 3 Fabricators . | . . . Repair Stations . | . . . Recycling Units 1 | . . 1 Scanalyzers . | . . . Garrison Access . | . . . Total Hacks 12 | . 1 11 Successful 7 | . . 7 Failed 5 | . 1 4 Catastrophic 1 | . 1 . Database Lockouts . | . . . Manual . | . . . Terminals 9 | . 1 8 Fabricators . | . . . Repair Stations . | . . . Recycling Units 3 | . . 3 Scanalyzers . | . . . Garrison Access . | . . . Terminal Hacks 5 | . . 5 Record 1 | . . 1 Prototype ID Bank 1 | . . 1 Alert Level 1 | . . 1 Zone Layout 2 | . . 2 Fabricator Hacks . | . . . Repair Station Hacks . | . . . Recycling Unit Hacks 2 | . . 2 Retrieve Matter 1 | . . 1 Retrieve Components 1 | . . 1 Scanalyzer . | . . . Garrison Access Hacks . | . . . Unauthorized Hacks . | . . . Terminals . | . . . Fabricators . | . . . Repair Stations . | . . . Recycling Units . | . . . Scanalyzers . | . . . Garrison Access . | . . . Data Cores Recovered . | . . . Used . | . . . Hacking Detections 3 | . 1 2 Full Trace Events . | . . . Feedback Events . | . . . Feedback Blocked . | . . . Robot Schematics Acquired . | . . . Robots Built . | . . . Matter . | . . . Time . | . . . Total Robot Build Rating . | . . . Part Schematics Acquired . | . . . Parts Built . | . . . Matter . | . . . Time . | . . . Total Part Build Rating . | . . . Parts Repaired . | . . . Time . | . . . Parts Recycled . | . . . Recycled Matter . | . . . Retrieved Matter . | . . . Retrieved Components 3 | . . 3 Parts Scanalyzed . | . . . Part Schematics Acquired . | . . . Parts Damaged . | . . . Bothacking | -11 -10 -9 ------------ Run | Scr Mat Mat Used RIF Installer . | . . . Robots Hacked . | . . . Non-combat . | . . . Combat . | . . . Robot Hacks Applied . | . . . Relay Couplers Released . | . . . Robots Rewired . | . . . Allies Hacked . | . . . Hacks Repelled . | . . . Allies | -11 -10 -9 -------- Run | Scr Mat Mat Total Allies . | . . . Largest Group . | . . . Highest-Rated Group . | . . . Highest-Rated Ally . | . . . Total Orders . | . . . Ally Attacks . | . . . Total Damage . | . . . Kills . | . . . Allies Corrupted . | . . . Allies Melted . | . . . Intel | -11 -10 -9 ------- Run | Scr Mat Mat Robot Analysis Total . | . . . Derelict Logs Recovered . | . . . Drone Launches . | . . . Drone Recoveries . | . . . Exploration | -11 -10 -9 ------------- Run | Scr Mat Mat Turns Passed 476 | 90 78 308 Spaces Moved 343 | 61 74 208 Core 7 | 3 . 4 Treads . | . . . Legs 16 | . . 16 Wheels 320 | 58 74 188 Hover . | . . . Flight . | . . . Fastest Speed 50 | 50 90 80 Average Speed 96 | 88 90 100 Slowest Speed 750 | 100 90 750 Overloaded Moves . | . . . Propulsion Burnouts . | . . . Robots Hopped . | . . . Cave-ins Triggered . | . . . Exploration Rate (%) 16 | 4 22 23 Regions Visited 2 Branch Regions . Pre-discovered Areas . | . . . Known Exits Taken . | . . . Unknown Exits Taken 2 | 1 1 . Scrap Searched . | . . . Spaces Dug . | . . . Terrain Destroyed . | . . . Melee . | . . . Projectile . | . . . AOE . | . . . Actions | -11 -10 -9 --------- Run | Scr Mat Mat Total 434 | 79 85 270 Wait 14 | . 12 2 Move 341 | 60 73 208 Hop . | . . . Pick Up 12 | 6 . 6 Fast Attach 14 | 6 . 8 Attach 12 | . . 12 Detach 1 | . . 1 Swap 10 | . . 10 Drop 3 | . . 3 Fire 21 | 7 . 14 Melee . | . . . Ram 5 | . . 5 Kick 1 | . . 1 Crush . | . . . Escape Stasis . | . . . Rewire . | . . . Trap . | . . . Miscellaneous . | . . . Route ------- -11/Scrapyard -10/Materials -9/Materials (discovered 1 exit: [*Min]) History --------- Turn | Location | Event 6 | -11/Scrapyard | Discovered new exit (range 16) 91 | -11/Scrapyard | Entered Materials 159 | -10/Materials | Discovered new exit (range 13) 169 | -10/Materials | Entered another Materials area 169 | -9/Materials | Evolved 2 slots: Propulsion x2 309 | -9/Materials | Build established: Mutant 422 | -9/Materials | Discovered new exit (range 5) 423 | -9/Materials | Core integrity fell below 50% 437 | -9/Materials | Core integrity fell below 20% 477 | -9/Materials | Destroyed by G-34 Mercenary with Small Laser Last Messages --------------- 00419_ R-06 Scavenger collects Lgt. Assault Rifle. 00420_ Imp. Ion Engine destroyed. 00422_ R-06 Scavenger collects Lgt. Assault Rifle. 00422_ EXIT=FOUND 00431_ System corrupted: Substantial component data lost. 00435_ K-01 Serf collects debris. 00443_ Slammed into G-34 Mercenary. 00443_ Spread Laser destroyed. 00444_ R-06 Scavenger collects Flight Unit. 00447_ K-01 Serf collects debris. 00450_ Spread Laser destroyed. 00450_ Acquired Titanium Leg. 00450_ K-01 Serf collects debris. 00451_ System corrupted: Matter fused (-10). 00452_ K-01 Serf collects debris. 00453_ Acquired Titanium Leg. 00453_ K-01 Serf collects debris. 00466_ Aluminum Leg destroyed. 00468_ Acquired Titanium Leg. 00471_ Aluminum Leg destroyed. Map ----- +----------------------------------------------------+ | ?????????????????????????????????????????????????? | | ?????????????????????????????????????????????????? | | ?????????????????????????????????????????????????? | | ?????????????????????????????????????????????????? | | ?????????????????????????????????????????????????? | | ?????????????????????????????????????????????????? | | ?????????????????????????????????????????????????? | | ?????????????????????????????????????????????????? | | ?????????????????????????????????????????????????? | | ?????????????????????????????????????????????????? | | ?????????????????????????????????????????????????? | | ?????????????????????????????????????????????????? | | ?????????????????????????????????????????????????? | | ?????????????????????????????????????????????????? | | ?????????????????????????????????????????????????? | | ?????????????????????????????????????????????????? | | ?????????????????????????????????????????????????? | | ??????????????????????????###???##???????????????? | | ??????????????????????????? #???????????????? | | ??????????????????????????? """ #???????????????? | | ???????????????????????????? """ #???????????????? | | ???????????????????????????? """ #???????????????? | | ????????????????????#####???? ????????????????? | | ????????????????????#== #???? ?????????????????? | | ????????????????????#== ######+####+##########???? | | ????????????????????# @ %= ^ ??? | | ????????????????????# gg =[ ^ ??? | | ????????????????????# ==%%=% ??? | | ????????????????????# gg %%%### ###?????????? | | ????????????????????##### ####=#?? #???????????? | | ???????????????????????# """#%#?? #???????????? | | ???????????????????????# "#/###/###?????????? | | ???????????????????????# !"#=%= #?????????? | | ???????????????????????# < ""#*!% #?????????? | | ???????????????????????# |"#[ = #?????????? | | ???????????????????????# "# ! #########/# | | ???????????????????????# g """# [ # | | ???????????????????????## #### + | | ????????????????????????# #??# [[ # | | ????????????????????????#a #??# =[# ###### | | ????????????????????????# #??# # #????? | | ???????? ######### ##?# # +????? | | ???????? #?# # #????? | | ????????####+########### #?####### # #????? | | ???????????# #?#[ ########### +????? | | ???????????# """ """ #?# #########?# ####????? | | ???????????# """ """ #?# # ??# #???????? | | ????????#### """ """ ########?# #?## ##??????? | | ???????? # # """ ##### ##### #??????? | | ???????? # # "T" + #??????? | +----------------------------------------------------+ Best States ------------- Heat Dissipation 28 Energy Generation 12 Energy Capacity 265 Matter Stores 300 Matter Capacity 300 Sight Range 16 Terrain Scan Density 10 Armor Coverage 225 Evasion (%) 44 Item Schematics ----------------- None Robot Schematics ------------------ None Fabricated ------------ Nothing Alien Tech Used ----------------- None Achievements -------------- None Challenges ------------ None Game ------ Seed SpikedRemoteAutogun Manual? 0 Play Time 00:14:42 Cumulative 13.2 hours Start 2020.05.29 @ 23:46:48 End 2020.05.30 @ 00:01:08 Sessions 1 Manual Loads 0 Difficulty Rogue Special Mode None Game No. 20 Rogue 20 Adventurer 0 Explorer 0 Win Type - Total 0 Types 0/0/0/0/0/0/0 Lore% 15 Gallery% 18 Achievement% 16 Wizard Run 0 Options --------- ASCII 0 Keyboard 0 Movement Mouse Keybinds 0 Fullscreen 2 Font 24/Terminus Map View 113x50 Tactical HUD 1 Map Filters NONE Filters NONE Steam 1 RUN: 7feca209-71fd-4a40-9c9c-b05a29f10fda